fUST/lending_fUST_20251006
["ID","MTS","AMOUNT","RATE_DAILY","PERIOD"]
[389495405,1759683039647,-714.26,0.00016438,2]
[389495406,1759683039657,-714.26,0.00016438,2]
[389495407,1759683039667,-500.0,0.00016438,2]
[389495408,1759683039676,-714.26,0.00016438,2]
[389495409,1759683039687,-714.26,0.00016438,2]
[389495410,1759683039696,-714.26,0.00016438,2]
[389495411,1759683039705,-714.26,0.00016438,2]
[389495412,1759683039715,-714.26,0.00016438,2]
[389495413,1759683039725,-714.26,0.00016438,2]
[389495414,1759683039735,-714.3122281,0.00016438,2]
[389495415,1759683039744,-500.0,0.00016438,2]
[389495416,1759683039754,-500.0,0.00016438,2]
[389495417,1759683039763,-500.0,0.00016438,2]
[389495418,1759683039774,-480.0,0.00016438,2]
[389495419,1759683039783,-480.0,0.00016438,2]
[389495420,1759683039792,-500.0,0.00016438,2]
[389495421,1759683039801,-500.0,0.00016438,2]
[389495422,1759683039811,-500.0,0.00016438,2]
[389495423,1759683039819,-640.99,0.00016438,2]
[389495424,1759683039829,-500.0,0.00016438,2]
[389495425,1759683039838,-500.0,0.00016438,2]
[389495426,1759683039847,-500.0,0.00016438,2]
[389495427,1759683039856,-500.0,0.00016438,2]
[389495428,1759683039866,-751.03,0.00016438,2]
[389495429,1759683039875,-500.0,0.00016438,2]
[389495430,1759683039885,-480.0,0.00016438,2]
[389495431,1759683039894,-500.0,0.00016438,2]
[389495432,1759683039904,-2842.52,0.00016438,2]
[389495433,1759683039913,-500.0,0.00016438,2]
[389495434,1759683039923,-480.0,0.00016438,2]
[389495435,1759683039932,-500.0,0.00016438,2]
[389495436,1759683039941,-500.0,0.00016438,2]
[389495437,1759683039950,-500.0,0.00016438,2]
[389495438,1759683039960,-569.08,0.00016438,2]
[389495439,1759683039969,-500.0,0.00016438,2]
[389495440,1759683039978,-500.0,0.00016438,2]
[389495441,1759683039988,-500.0,0.00016438,2]
[389495442,1759683039997,-500.0,0.00016438,2]
[389495443,1759683040006,-500.0,0.00016438,2]
[389495444,1759683040015,-500.0,0.00016438,2]
[389495445,1759683040024,-500.0,0.00016438,2]
[389495446,1759683040033,-500.0,0.00016438,2]
[389495447,1759683040042,-480.0,0.00016438,2]
[389495448,1759683040050,-500.0,0.00016438,2]
[389495449,1759683040059,-500.0,0.00016438,2]
[389495450,1759683040069,-500.0,0.00016438,2]
[389495451,1759683040078,-905.39,0.00016438,2]
[389495452,1759683040088,-503.02662089,0.00016438,2]
[389495453,1759683040096,-500.0,0.00016438,2]
[389495454,1759683040105,-1559.51,0.00016438,2]
[389495455,1759683040114,-863.89,0.00016438,2]
[389495456,1759683040123,-727.65,0.00016438,2]
[389495458,1759683040131,-500.0,0.00016438,2]
[389495460,1759683040141,-500.0,0.00016438,2]
[389495462,1759683040151,-500.0,0.00016438,2]
[389495464,1759683040161,-500.0,0.00016438,2]
[389495466,1759683040172,-500.0,0.00016438,2]
[389495469,1759683040187,-951.46,0.00016438,2]
[389495471,1759683040196,-500.0,0.00016438,2]
[389495473,1759683040206,-500.0,0.00016438,2]
[389495474,1759683040215,-500.0,0.00016438,2]
[389495476,1759683040226,-500.0,0.00016438,2]
[389495479,1759683040235,-500.0,0.00016438,2]
[389495482,1759683040244,-500.0,0.00016438,2]
[389495484,1759683040253,-500.0,0.00016438,2]
[389495486,1759683040265,-500.0,0.00016438,2]
[389495488,1759683040275,-500.0,0.00016438,2]
[389495490,1759683040284,-1271.97,0.00016438,2]
[389495492,1759683040294,-500.0,0.00016438,2]
[389495495,1759683040303,-500.0,0.00016438,2]
[389495498,1759683040312,-500.0,0.00016438,2]
[389495500,1759683040321,-665.62,0.00016438,2]
[389495502,1759683040330,-665.43,0.00016438,2]
[389495503,1759683040339,-627.59,0.00016438,2]
[389495504,1759683040349,-500.0,0.00016438,2]
[389495506,1759683040358,-500.0,0.00016438,2]
[389495507,1759683040367,-3139.2,0.00016438,2]
[389495508,1759683040376,-707.99,0.00016438,2]
[389495509,1759683040386,-500.0,0.00016438,2]
[389495510,1759683040396,-577.86,0.00016438,2]
[389495511,1759683040405,-500.0,0.00016438,2]
[389495512,1759683040414,-1861.48,0.00016438,2]
[389495513,1759683040423,-500.0,0.00016438,2]
[389495514,1759683040432,-706.46,0.00016438,2]
[389495515,1759683040441,-500.0,0.00016438,2]
[389495516,1759683040450,-500.0,0.00016438,2]
[389495517,1759683040459,-1077.99,0.00016438,2]
[389495518,1759683040468,-500.0,0.00016438,2]
[389495519,1759683040477,-480.0,0.00016438,2]
[389495520,1759683040486,-500.0,0.00016438,2]
[389495521,1759683040495,-500.0,0.00016438,2]
[389495522,1759683040503,-500.0,0.00016438,2]
[389495524,1759683040512,-500.0,0.00016438,2]
[389495526,1759683040521,-653.03,0.00016438,2]
[389495527,1759683040531,-769.59,0.00016438,2]
[389495528,1759683040539,-500.0,0.00016438,2]
[389495529,1759683040548,-500.0,0.00016438,2]
[389495530,1759683040557,-1276.47,0.00016438,2]
[389495531,1759683040566,-500.0,0.00016438,2]
[389495532,1759683040575,-690.87,0.00016438,2]
[389495533,1759683040583,-500.0,0.00016438,2]
[389495534,1759683040593,-500.0,0.00016438,2]
[389495535,1759683040601,-500.0,0.00016438,2]
[389495536,1759683040610,-507.23,0.00016438,2]
[389495537,1759683040619,-500.0,0.00016438,2]
[389495538,1759683040628,-1894.19,0.00016438,2]
[389495539,1759683040637,-500.0,0.00016438,2]
[389495540,1759683040646,-500.0,0.00016438,2]
[389495541,1759683040654,-500.0,0.00016438,2]
[389495542,1759683040663,-1293.08,0.00016438,2]
[389495543,1759683040672,-761.4,0.00016438,2]
[389495544,1759683040681,-500.0,0.00016438,2]
[389495545,1759683040690,-922.24,0.00016438,2]
[389495546,1759683040700,-500.0,0.00016438,2]
[389495547,1759683040710,-1589.72,0.00016438,2]
[389495548,1759683040720,-500.0,0.00016438,2]
[389495549,1759683040729,-3451.89,0.00016438,2]
[389495550,1759683040739,-1321.69,0.00016438,2]
[389495551,1759683040748,-500.0,0.00016438,2]
[389495552,1759683040757,-587.27,0.00016438,2]
[389495553,1759683040767,-500.0,0.00016438,2]
[389495554,1759683040776,-500.0,0.00016438,2]
[389495555,1759683040785,-500.0,0.00016438,2]
[389495556,1759683040795,-500.0,0.00016438,2]
[389495557,1759683040804,-500.0,0.00016438,2]
[389495558,1759683040813,-500.0,0.00016438,2]
[389495559,1759683040822,-919.59,0.00016438,2]
[389495560,1759683040831,-483.85596015,0.00016438,2]
[389495561,1759683040841,-586.99,0.00016438,2]
[389495562,1759683040850,-500.0,0.00016438,2]
[389495563,1759683040860,-500.0,0.00016438,2]
[389495564,1759683040869,-500.0,0.00016438,2]
[389495565,1759683040879,-500.0,0.00016438,2]
[389495566,1759683040888,-1240.25,0.00016438,2]
[389495567,1759683040897,-500.0,0.00016438,2]
[389495568,1759683040907,-1980.12,0.00016438,2]
[389495569,1759683040917,-500.0,0.00016438,2]
[389495570,1759683040926,-500.0,0.00016438,2]
[389495571,1759683040939,-500.0,0.00016438,2]
[389495572,1759683040948,-500.0,0.00016438,2]
[389495573,1759683040957,-500.0,0.00016438,2]
[389495574,1759683040966,-589.1,0.00016438,2]
[389495575,1759683040975,-500.0,0.00016438,2]
[389495576,1759683040985,-420.8763788,0.00016438,2]
[389495577,1759683040995,-690.9,0.00016438,2]
[389495578,1759683041004,-7147.6553689,0.00016438,2]
[389495579,1759683041013,-505.92,0.00016438,2]
[389495580,1759683041023,-500.0,0.00016438,2]
[389495581,1759683041033,-500.0,0.00016438,2]
[389495582,1759683041042,-500.0,0.00016438,2]
[389495583,1759683041052,-500.0,0.00016438,2]
[389495584,1759683041061,-500.0,0.00016438,2]
[389495585,1759683041070,-500.0,0.00016438,2]
[389495586,1759683041079,-273.05363771,0.00016438,2]
[389495587,1759683041089,-766.86,0.00016438,2]
[389495588,1759683041098,-500.0,0.00016438,2]
[389495589,1759683041107,-481.7148059,0.00016438,2]
[389495590,1759683041116,-750.6,0.00016438,2]
[389495591,1759683041125,-481.7691852,0.00016438,2]
[389495592,1759683041135,-494.380835,0.00016438,2]
[389495593,1759683041144,-500.0,0.00016438,2]
[389495595,1759683041154,-329.09679127,0.00016438,2]
[389495597,1759683041163,-662.6,0.00016438,2]
[389495599,1759683041172,-500.0,0.00016438,2]
[389495601,1759683041186,-500.0,0.00016438,2]
[389495602,1759683041195,-480.0,0.00016438,2]
[389495603,1759683041204,-500.0,0.00016438,2]
[389495604,1759683041213,-2886.56,0.00016438,2]
[389495605,1759683041223,-548.46,0.00016438,2]
[389495606,1759683041232,-878.92,0.00016438,2]
[389495607,1759683041245,-1381.99,0.00016438,2]
[389495608,1759683041254,-500.0,0.00016438,2]
[389495609,1759683041264,-500.0,0.00016438,2]
[389495610,1759683041274,-500.0,0.00016438,2]
[389495611,1759683041283,-500.0,0.00016438,2]
[389495612,1759683041292,-500.0,0.00016438,2]
[389495613,1759683041301,-500.0,0.00016438,2]
[389495614,1759683041310,-500.0,0.00016438,2]
[389495615,1759683041319,-500.0,0.00016438,2]
[389495616,1759683041328,-1231.65,0.00016438,2]
[389495617,1759683041337,-500.0,0.00016438,2]
[389495618,1759683041346,-500.0,0.00016438,2]
[389495619,1759683041358,-656.49,0.00016438,2]
[389495620,1759683041367,-500.0,0.00016438,2]
[389495621,1759683041376,-500.0,0.00016438,2]
[389495622,1759683041384,-500.0,0.00016438,2]
[389495623,1759683041393,-1288.0,0.00016438,2]
[389495624,1759683041402,-500.0,0.00016438,2]
[389495625,1759683041412,-500.0,0.00016438,2]
[389495626,1759683041421,-502.09801642,0.00016438,2]
[389495627,1759683041430,-500.0,0.00016438,2]
[389495628,1759683041641,-14901.6154728,0.00016438,2]
[389495629,1759683041650,-675.41,0.00016438,2]
[389495630,1759683041659,-500.0,0.00016438,2]
[389495631,1759683041668,-408.67033245,0.00016438,2]
[389495632,1759683041678,-519.32,0.00016438,2]
[389495633,1759683041689,-828.85,0.00016438,2]
[389495634,1759683041699,-500.0,0.00016438,2]
[389495635,1759683041708,-843.89,0.00016438,2]
[389495636,1759683041717,-480.0,0.00016438,2]
[389495637,1759683041726,-480.0,0.00016438,2]
[389495638,1759683041735,-500.0,0.00016438,2]
[389495639,1759683041744,-500.0,0.00016438,2]
[389495640,1759683041754,-500.0,0.00016438,2]
[389495641,1759683041763,-1439.12,0.00016438,2]
[389495642,1759683041772,-500.0,0.00016438,2]
[389495643,1759683041782,-500.0,0.00016438,2]
[389495644,1759683041791,-1208.03,0.00016438,2]
[389495645,1759683041800,-218.03186546,0.00016438,2]
[389495646,1759683041809,-500.0,0.00016438,2]
[389495647,1759683041818,-500.0,0.00016438,2]
[389495648,1759683041827,-500.0,0.00016438,2]
[389495649,1759683041836,-500.0,0.00016438,2]
[389495650,1759683041845,-480.0,0.00016438,2]
[389495651,1759683041854,-500.0,0.00016438,2]
[389495652,1759683041864,-2847.73,0.00016438,2]
[389495653,1759683041873,-500.0,0.00016438,2]
[389495654,1759683041882,-500.0,0.00016438,2]
[389495655,1759683041891,-500.0,0.00016438,2]
[389495656,1759683041900,-481.96756799,0.00016438,2]
[389495657,1759683041909,-500.0,0.00016438,2]
[389495658,1759683041918,-500.0,0.00016438,2]
[389495659,1759683041927,-1201.88,0.00016438,2]
[389495660,1759683041937,-500.0,0.00016438,2]
[389495661,1759683041946,-7543.42,0.00016438,2]
[389495662,1759683041955,-500.0,0.00016438,2]
[389495663,1759683041965,-613.68575367,0.00016438,2]
[389495664,1759683041974,-500.0,0.00016438,2]
[389495665,1759683041983,-500.0,0.00016438,2]
[389495666,1759683041992,-2501.47,0.00016438,2]
[389495667,1759683042001,-500.0,0.00016438,2]
[389495668,1759683042010,-500.0,0.00016438,2]
[389495669,1759683042020,-500.0,0.00016438,2]
[389495670,1759683042029,-605.92,0.00016438,2]
[389495671,1759683042039,-2829.49,0.00016438,2]
[389495672,1759683042048,-500.0,0.00016438,2]
[389495673,1759683042057,-500.0,0.00016438,2]
[389495674,1759683042066,-7633.12,0.00016438,2]
[389495675,1759683042075,-500.0,0.00016438,2]
[389495676,1759683042086,-1955.89,0.00016438,2]
[389495677,1759683042095,-500.0,0.00016438,2]
[389495678,1759683042104,-500.0,0.00016438,2]
[389495679,1759683042114,-500.0,0.00016438,2]
[389495680,1759683042123,-1524.42,0.00016438,2]
[389495681,1759683042133,-1078.1,0.00016438,2]
[389495682,1759683042144,-500.0,0.00016438,2]
[389495683,1759683042153,-2430.6,0.00016438,2]
[389495684,1759683042162,-1566.87,0.00016438,2]
[389495685,1759683042171,-318.94803406,0.00016438,2]
[389495686,1759683042182,-500.0,0.00016438,2]
[389495687,1759683042193,-3661.35,0.00016438,2]
[389495688,1759683042202,-500.0,0.00016438,2]
[389495689,1759683042211,-500.0,0.00016438,2]
[389495690,1759683042222,-5648.74,0.00016438,2]
[389495691,1759683042231,-500.0,0.00016438,2]
[389495692,1759683042240,-500.0,0.00016438,2]
[389495693,1759683042249,-941.56,0.00016438,2]
[389495694,1759683042259,-500.0,0.00016438,2]
[389495695,1759683042268,-2793.01,0.00016438,2]
[389495696,1759683042279,-500.0,0.00016438,2]
[389495697,1759683042289,-500.0,0.00016438,2]
[389495698,1759683042299,-502.17781976,0.00016438,2]
[389495699,1759683042308,-500.0,0.00016438,2]
[389495700,1759683042318,-500.0,0.00016438,2]
[389495701,1759683042328,-4190.87,0.00016438,2]
[389495702,1759683042338,-500.0,0.00016438,2]
[389495703,1759683042347,-500.0,0.00016438,2]
[389495704,1759683042356,-712.14,0.00016438,2]
[389495705,1759683042366,-500.0,0.00016438,2]
[389495706,1759683042375,-1244.49,0.00016438,2]
[389495707,1759683042386,-500.0,0.00016438,2]
[389495708,1759683042407,-480.0,0.00016438,2]
[389495709,1759683042418,-480.0,0.00016438,2]
[389495710,1759683042428,-7876.79,0.00016438,2]
[389495711,1759683042439,-500.0,0.00016438,2]
[389495712,1759683042449,-500.0,0.00016438,2]
[389495713,1759683042460,-470.08229486,0.00016438,2]
[389495714,1759683042471,-1636.71,0.00016438,2]
[389495715,1759683042481,-480.0,0.00016438,2]
[389495716,1759683042491,-500.0,0.00016438,2]
[389495717,1759683042502,-480.0,0.00016438,2]
[389495718,1759683042511,-500.0,0.00016438,2]
[389495719,1759683042521,-500.0,0.00016438,2]
[389495720,1759683042531,-500.0,0.00016438,2]
[389495721,1759683042541,-500.0,0.00016438,2]
[389495722,1759683042552,-500.0,0.00016438,2]
[389495723,1759683042562,-500.0,0.00016438,2]
[389495724,1759683042573,-500.0,0.00016438,2]
[389495725,1759683042584,-500.0,0.00016438,2]
[389495726,1759683042594,-500.254942,0.00016438,2]
[389495727,1759683042605,-480.18681118,0.00016438,2]
[389495728,1759683042614,-500.0,0.00016438,2]
[389495729,1759683042625,-1542.81,0.00016438,2]
[389495730,1759683042635,-691.74,0.00016438,2]
[389495731,1759683042644,-500.0,0.00016438,2]
[389495732,1759683042654,-746.45,0.00016438,2]
[389495733,1759683042663,-745.75,0.00016438,2]
[389495734,1759683042673,-864.59,0.00016438,2]
[389495735,1759683042683,-501.42741832,0.00016438,2]
[389495736,1759683042694,-500.0,0.00016438,2]
[389495737,1759683042703,-1625.81,0.00016438,2]
[389495738,1759683042712,-500.0,0.00016438,2]
[389495739,1759683042722,-500.0,0.00016438,2]
[389495740,1759683042732,-158.66092291,0.00016438,2]
[389495741,1759683042741,-1276.87,0.00016438,2]
[389495742,1759683042751,-914.33,0.00016438,2]
[389495743,1759683042761,-500.0,0.00016438,2]
[389495744,1759683042771,-500.0,0.00016438,2]
[389495745,1759683042780,-1151.73,0.00016438,2]
[389495746,1759683042789,-1768.9,0.00016438,2]
[389495747,1759683042800,-4128.88,0.00016438,2]
[389495748,1759683042810,-500.0,0.00016438,2]
[389495749,1759683042820,-500.0,0.00016438,2]
[389495750,1759683042829,-601.81,0.00016438,2]
[389495751,1759683042839,-500.0,0.00016438,2]
[389495752,1759683042848,-500.0,0.00016438,2]
[389495753,1759683042858,-1631.89,0.00016438,2]
[389495754,1759683042868,-2717.3,0.00016438,2]
[389495755,1759683042877,-500.0,0.00016438,2]
[389495756,1759683042887,-853.97,0.00016438,2]
[389495757,1759683042897,-500.0,0.00016438,2]
[389495758,1759683042907,-500.0,0.00016438,2]
[389495759,1759683042917,-5655.4,0.00016438,2]
[389495760,1759683042927,-450.00592676,0.00016438,2]
[389495761,1759683042938,-644.18,0.00016438,2]
[389495762,1759683042947,-851.61,0.00016438,2]
[389495763,1759683042957,-5499.36,0.00016438,2]
[389495764,1759683042967,-4498.11,0.00016438,2]
[389495765,1759683042976,-4396.27,0.00016438,2]
[389495766,1759683042985,-601.93,0.00016438,2]
[389495767,1759683042995,-500.0,0.00016438,2]
[389495768,1759683043004,-500.0,0.00016438,2]
[389495769,1759683043013,-395.92846155,0.00016438,2]
[389495770,1759683043023,-830.43,0.00016438,2]
[389495771,1759683043032,-500.0,0.00016438,2]
[389495772,1759683043041,-500.0,0.00016438,2]
[389495773,1759683043051,-500.0,0.00016438,2]
[389495774,1759683043061,-921.77,0.00016438,2]
[389495775,1759683043070,-1181.0,0.00016438,2]
[389495776,1759683043080,-500.0,0.00016438,2]
[389495779,1759683043089,-203.5580902,0.00016438,2]
[389495782,1759683043100,-500.0,0.00016438,2]
[389495784,1759683043109,-2597.62,0.00016438,2]
[389495785,1759683043118,-500.0,0.00016438,2]
[389495786,1759683043130,-1226.01,0.00016438,2]
[389495788,1759683043139,-1056.87,0.00016438,2]
[389495790,1759683043149,-500.0,0.00016438,2]
[389495791,1759683043159,-500.0,0.00016438,2]
[389495793,1759683043168,-429.15800954,0.00016438,2]
[389495795,1759683043179,-1595.17,0.00016438,2]
[389495796,1759683043192,-500.0,0.00016438,2]
[389495797,1759683043201,-3567.7,0.00016438,2]
[389495798,1759683043211,-500.0,0.00016438,2]
[389495799,1759683043221,-4467.37,0.00016438,2]
[389495800,1759683043230,-500.0,0.00016438,2]
[389495801,1759683043240,-480.0,0.00016438,2]
[389495802,1759683043249,-500.0,0.00016438,2]
[389495803,1759683043260,-500.0,0.00016438,2]
[389495805,1759683043272,-500.0,0.00016438,2]
[389495807,1759683043282,-2425.68,0.00016438,2]
[389495809,1759683043291,-500.0,0.00016438,2]
[389495811,1759683043301,-366.13506591,0.00016438,2]
[389495814,1759683043317,-500.0,0.00016438,2]
[389495816,1759683043330,-500.0,0.00016438,2]
[389495817,1759683043339,-508.003,0.00016438,2]
[389495818,1759683043348,-500.0,0.00016438,2]
[389495819,1759683043357,-500.0,0.00016438,2]
[389495821,1759683043367,-509.51,0.00016438,2]
[389495823,1759683043375,-1398.29,0.00016438,2]
[389495825,1759683043384,-4931.82,0.00016438,2]
[389495827,1759683043394,-500.0,0.00016438,2]
[389495829,1759683043403,-500.0,0.00016438,2]
[389495831,1759683043413,-2146.05,0.00016438,2]
[389495833,1759683043422,-2006.77,0.00016438,2]
[389495836,1759683043432,-500.0,0.00016438,2]
[389495837,1759683043446,-500.0,0.00016438,2]
[389495839,1759683043456,-500.0,0.00016438,2]
[389495841,1759683043465,-1916.69,0.00016438,2]
[389495843,1759683043474,-500.0,0.00016438,2]
[389495844,1759683043488,-9096.5,0.00016438,2]
[389495845,1759683043497,-3164.66,0.00016438,2]
[389495846,1759683043507,-500.0,0.00016438,2]
[389495847,1759683043516,-1132.36,0.00016438,2]
[389495848,1759683043526,-593.97,0.00016438,2]
[389495849,1759683043536,-500.0,0.00016438,2]
[389495850,1759683043545,-181.42950587,0.00016438,2]
[389495851,1759683043555,-500.0,0.00016438,2]
[389495852,1759683043564,-310.67572546,0.00016438,2]
[389495853,1759683043574,-500.0,0.00016438,2]
[389495854,1759683043583,-500.0,0.00016438,2]
[389495855,1759683043593,-500.0,0.00016438,2]
[389495856,1759683043604,-501.30543044,0.00016438,2]
[389495857,1759683043613,-500.0,0.00016438,2]
[389495859,1759683043623,-1024.56,0.00016438,2]
[389495861,1759683043632,-703.22,0.00016438,2]
[389495863,1759683043642,-500.0,0.00016438,2]
[389495864,1759683043652,-500.0,0.00016438,2]
[389495865,1759683043662,-500.0,0.00016438,2]
[389495866,1759683043671,-500.0,0.00016438,2]
[389495868,1759683043681,-1118.02,0.00016438,2]
[389495869,1759683043691,-500.0,0.00016438,2]
[389495870,1759683043701,-500.0,0.00016438,2]
[389495871,1759683043711,-500.0,0.00016438,2]
[389495872,1759683043721,-500.0,0.00016438,2]
[389495874,1759683043732,-1995.61,0.00016438,2]
[389495875,1759683043743,-2310.91,0.00016438,2]
[389495876,1759683043754,-482.23471916,0.00016438,2]
[389495877,1759683043764,-500.0,0.00016438,2]
[389495878,1759683043774,-500.0,0.00016438,2]
[389495879,1759683043784,-583.51,0.00016438,2]
[389495880,1759683043794,-500.0,0.00016438,2]
[389495881,1759683043804,-582.63792315,0.00016438,2]
[389495882,1759683043814,-741.26,0.00016438,2]
[389495883,1759683043823,-4044.23,0.00016438,2]
[389495884,1759683043833,-500.0,0.00016438,2]
[389495885,1759683043843,-3420.83,0.00016438,2]
[389495886,1759683043852,-761.7,0.00016438,2]
[389495887,1759683043862,-500.0,0.00016438,2]
[389495888,1759683043872,-151.0,0.00016438,2]
[389495889,1759683043881,-500.0,0.00016438,2]
[389495890,1759683043890,-1500.0,0.00016438,2]
[389495891,1759683043900,-540.0,0.00016536,2]
[389495892,1759683043909,-500.0,0.00016602,2]
[389495893,1759683043919,-500.0,0.00016602,2]
[389495894,1759683043928,-18603.8837,0.00016602,2]
[389495895,1759683043939,-500.0,0.00016602,2]
[389495896,1759683043949,-151.0,0.00016602,2]
[389495897,1759683043959,-600.0,0.00016602,2]
[389495898,1759683043968,-151.0,0.00016602,2]
[389495899,1759683043977,-151.0,0.00016602,2]
[389495900,1759683043987,-162.380719,0.00016602,2]
[389495901,1759683043997,-151.0,0.00016602,2]
[389495902,1759683044006,-162.380719,0.00016602,2]
[389495903,1759683044015,-151.0,0.00016602,2]
[389495904,1759683044025,-151.0,0.00016602,2]
[389495905,1759683044035,-151.0,0.00016602,2]
[389495906,1759683044044,-10000.0,0.00016612,2]
[389495907,1759683044054,-2241.03273719,0.00016661,2]
[389495908,1759683044063,-500.0,0.00016712,2]
[389495909,1759683044073,-500.0,0.00016712,2]
[389495910,1759683044083,-1462.89,0.00016712,2]
[389495911,1759683044092,-500.0,0.00016712,2]
[389495912,1759683044101,-500.0,0.00016712,2]
[389495913,1759683044111,-500.0,0.00016712,2]
[389495914,1759683044120,-500.0,0.00016712,2]
[389495915,1759683044129,-500.0,0.00016712,2]
[389495916,1759683044138,-500.0,0.00016712,2]
[389495917,1759683044147,-500.0,0.00016712,2]
[389495918,1759683044156,-500.0,0.00016712,2]
[389495919,1759683044165,-500.0,0.00016712,2]
[389495920,1759683044175,-500.0,0.00016712,2]
[389495921,1759683044188,-500.0,0.00016712,2]
[389495922,1759683044198,-269.22258135,0.00016712,2]
[389495923,1759683044207,-500.0,0.00016712,2]
[389495924,1759683044217,-500.0,0.00016712,2]
[389495925,1759683044226,-500.0,0.00016712,2]
[389495926,1759683044235,-500.0,0.00016712,2]
[389495927,1759683044244,-500.0,0.00016712,2]
[389495928,1759683044254,-607.69,0.00016712,2]
[389495929,1759683044264,-855.9,0.00016712,2]
[389495930,1759683044273,-500.0,0.00016712,2]
[389495931,1759683044282,-500.0,0.00016712,2]
[389495932,1759683044291,-500.0,0.00016712,2]
[389495933,1759683044300,-769.36,0.00016712,2]
[389495934,1759683044308,-500.0,0.00016712,2]
[389495935,1759683044318,-389.88510728,0.00016712,2]
[389495936,1759683044328,-500.0,0.00016712,2]
[389495937,1759683044337,-500.0,0.00016712,2]
[389495938,1759683044345,-500.0,0.00016712,2]
[389495939,1759683044354,-500.0,0.00016712,2]
[389495940,1759683044363,-500.0,0.00016712,2]
[389495941,1759683044374,-500.0,0.00016712,2]
[389495942,1759683044383,-500.0,0.00016712,2]
[389495943,1759683044392,-500.0,0.00016712,2]
[389495944,1759683044401,-500.0,0.00016712,2]
[389495945,1759683044410,-500.0,0.00016712,2]
[389495946,1759683044419,-500.0,0.00016712,2]
[389495947,1759683044428,-500.0,0.00016712,2]
[389495948,1759683044437,-500.0,0.00016712,2]
[389495949,1759683044446,-994.94,0.00016712,2]
[389495950,1759683044455,-500.0,0.00016712,2]
[389495951,1759683044464,-500.0,0.00016712,2]
[389495952,1759683044473,-500.0,0.00016712,2]
[389495953,1759683044482,-500.0,0.00016712,2]
[389495954,1759683044491,-500.0,0.00016712,2]
[389495955,1759683044500,-494.43223178,0.00016712,2]
[389495956,1759683044509,-500.0,0.00016712,2]
[389495957,1759683044518,-500.0,0.00016712,2]
[389495958,1759683044527,-500.0,0.00016712,2]
[389495959,1759683044536,-500.0,0.00016712,2]
[389495960,1759683044546,-1206.92,0.00016712,2]
[389495961,1759683044555,-480.0,0.00016712,2]
[389495962,1759683044564,-500.0,0.00016712,2]
[389495963,1759683044573,-500.0,0.00016712,2]
[389495964,1759683044582,-500.0,0.00016712,2]
[389495965,1759683044591,-500.0,0.00016712,2]
[389495966,1759683044600,-762.91,0.00016712,2]
[389495967,1759683044609,-500.0,0.00016712,2]
[389495968,1759683044618,-992.97,0.00016712,2]
[389495969,1759683044628,-500.0,0.00016712,2]